Cogmind - Beta 11 X4 @@@ ROGUE MODE // 2021.05.31 @ 23:51:02 Player: Runia Result: Self-destructed Performance ------------- Evolutions (2) 1000 Regions Visited (3) 600 Robots Destroyed (11) 55 Value Destroyed (355) 355 Prototype IDs (4) 80 Alien Tech Used (0) 0 Bonus (0) 0 TOTAL SCORE: 2090 Bonus ------- None Cogmind --------- Core Integrity 438/550 Matter 294/300 Energy 150/250 System Corruption 0% Temperature Cool (0) Movement Core (500) Ox9 Location -8/Materials Parts ------- > --- POWER (1) -------- Ion Engine > --- PROPULSION (3) --- (None) > --- UTILITY (4) ------ Large Storage Unit Structural Scanner > --- WEAPON (3) ------- Hammer > --- INVENTORY (15) --- Light Nuclear Core Light Treads Light Treads Aluminum Leg Aluminum Leg Peak State ------------ > --- POWER ------------ Ion Engine > --- PROPULSION ------- Aluminum Leg Aluminum Leg Aluminum Leg > --- UTILITY ---------- Large Storage Unit Structural Scanner > --- WEAPON ----------- Assault Rifle Hammer > --- INVENTORY -------- Ion Engine Light Nuclear Core Light Treads Light Treads [Rating: 8] Favorites ----------- Power Ion Engine Engine Ion Engine Propulsion Aluminum Leg Leg Aluminum Leg Utility Structural Scanner Device Structural Scanner Storage Large Storage Unit Weapon Assault Rifle Energy Gun Medium Laser Ballistic Gun Assault Rifle Impact Weapon Hammer Build | -11 -10 -9 -8 ------- Run | Scr Mat Mat Mat Slots Evolved 4 | . . 2 2 Power . | . . . . Propulsion 1 | . . 1 . Utility 2 | . . 1 1 Weapon 1 | . . . 1 Parts Attached 7 | . 5 1 1 Power 1 | . . . 1 Engine 1 | . . . 1 Core . | . . . . Reactor . | . . . . Propulsion 2 | . 1 1 . Treads . | . . . . Leg 2 | . 1 1 . Wheel . | . . . . Hover . | . . . . Flight . | . . . . Utility 2 | . 2 . . Device 1 | . 1 . . Storage 1 | . 1 . . Processor . | . . . . Hackware . | . . . . Protection . | . . . . Artifact . | . . . . Weapon 2 | . 2 . . Energy Gun 1 | . 1 . . Energy Cannon . | . . . . Ballistic Gun . | . . . . Ballistic Cannon . | . . . . Launcher . | . . . . Special Weapon . | . . . . Impact Weapon 1 | . 1 . . Slashing Weapon . | . . . . Piercing Weapon . | . . . . Special Melee Weapon . | . . . . Unidentified Prototypes . | . . . . Parts Lost 7 | . 2 . 5 Power 1 | . . . 1 Propulsion 3 | . . . 3 Utility . | . . . . Weapon 3 | . 2 . 1 Highest Loss Streak 5 | . 1 . 5 Average Slot Usage (%) 87 | . 93 88 68 Engine 12 | . 14 11 8 Leg 29 | . 28 33 25 Device 9 | . 8 11 9 Storage 12 | . 14 11 9 Energy Gun 4 | . 8 . . Ballistic Gun 12 | . 14 11 8 Impact Weapon 7 | . 4 11 9 Naked Turns . | . . . . Heaviest Build 30 | 14 30 30 30 Greatest Support 30 | 20 20 30 30 Greatest Overweight (x) 1 | . 1 . 1 Average Overweight (x) . | . . . . Largest Inventory Capacity 15 | . 15 15 15 Average Capacity 11 | . 8 15 15 Most Carried 6 | . 6 5 6 Average Carried 4 | . 3 4 5 Final Capacity 15 | 8 15 15 15 Final Carried 6 | 6 5 5 5 Class Distribution -------------------- 100% | Mutant Dominant Class ---------------- Mutant | -10/Materials Mutant | -9/Materials Mutant | -8/Materials Resources | -11 -10 -9 -8 ----------- Run | Scr Mat Mat Mat Matter Collected 311 | 190 80 41 . Remotely . | . . . . Salvage Created 284 | . 138 105 41 Parts 13 | . 8 2 3 Haulers Intercepted . | . . . . Recyclers Shooed . | . . . . Parts Field Recycled . | . . . . Retrieved Matter . | . . . . Parts Self-Destructed . | . . . . Prevented . | . . . . Kills | -11 -10 -9 -8 ------- Run | Scr Mat Mat Mat Combat Hostiles Destroyed 9 | . 6 2 1 Melee 1 | . 1 . . Guns 3 | . 1 1 1 AOE 4 | . 4 . . Classes Destroyed 4 | . 3 1 . Operator 1 | . . 1 . Watcher 1 | . 1 . . Swarmer 3 | . 3 . . Grunt 6 | . 3 2 1 Best Kill Streak 4 | . 4 1 1 Combat Bots Only 4 | . 4 1 1 Max Kills in Single Turn 4 | . 4 1 1 Gunslinging . | . . . . Exploded 4 | . 4 . . Melee 1 | . 1 . . Uniques/NPCs Destroyed . | . . . . Combat | -11 -10 -9 -8 -------- Run | Scr Mat Mat Mat Damage Taken 863 | . 356 177 330 Core 216 | . 67 37 112 Absorbed by Shields . | . . . . Core Remaining (%) 87 | 100 73 90 . Volleys Fired 29 | . 15 7 7 Largest 2 | . 2 1 1 Hottest 70 | . 70 20 20 Shots Fired 41 | . 27 7 7 Gun 41 | . 27 7 7 Cannon . | . . . . Launcher . | . . . . Special . | . . . . Kinetic 29 | . 15 7 7 Thermal 10 | . 10 . . Explosive . | . . . . Electromagnetic 2 | . 2 . . Robot Hit Streak 5 | . 4 5 4 Robot Miss Streak 4 | . 4 2 1 Penetration Max . | . . . . Secondary Targets . | . . . . Shots Hit Robots 35 | . 20 11 4 Core Hits 15 | . 9 3 3 Critical Kills . | . . . . Critical Parts Destroyed 1 | . . 1 . Critical Strikes 1 | . . 1 . Smash 1 | . . 1 . Melee Attacks 26 | . 7 13 6 Impact 26 | . 7 13 6 Slashing . | . . . . Piercing . | . . . . Sneak Attacks 1 | . . 1 . Combat Hostiles . | . . . . Follow-up Attacks . | . . . . Damage Inflicted 1020 | . 811 155 54 Guns 283 | . 171 58 54 Cannons . | . . . . Explosions 507 | . 507 . . Melee 227 | . 130 97 . Ramming 3 | . 3 . . Kinetic 234 | . 122 58 54 Thermal 556 | . 556 . . Explosive . | . . . . Electromagnetic . | . . . . Impact 227 | . 130 97 . Slashing . | . . . . Piercing . | . . . . Highest Corruption 1 | . 1 . . Average Corruption 1 | . 1 . . Corruption Purged . | . . . . Overload Shots . | . . . . Overflow Damage 99 | . 66 33 . Projectiles . | . . . . Explosions 64 | . 64 . . Melee 35 | . 2 33 . Knockbacks 2 | . 1 1 . Impact 2 | . 1 1 . Kinetic . | . . . . Secondary . | . . . . Self-Inflicted Damage 60 | . 60 . . Shots 1 | . 1 . . Rammed . | . . . . Targets Rammed 1 | . 1 . . Kicked 1 | . 1 . . Crushed . | . . . . Highest Temperature 162 | . 162 14 11 Average Temperature 80 | . 85 9 11 Received Heat Transfer 471 | . 129 135 207 Siege Activations . | . . . . Robots Corrupted . | . . . . Combat Hostiles . | . . . . Parts Fried 5 | . 3 2 . Impact Corruptions 3 | . 1 2 . Robots Melted . | . . . . Combat Hostiles . | . . . . Parts Melted . | . . . . Heat Transferred 448 | . 448 . . Parts Sabotaged . | . . . . Parts Stolen . | . . . . Parts Stripped . | . . . . Power Chain Reactions . | . . . . Missiles Intercepted . | . . . . Alert | -11 -10 -9 -8 ------- Run | Scr Mat Mat Mat Peak Influence 242 | . 242 212 124 Initial 102 | . . 102 89 Average 142 | . 157 135 98 Maximum Alert Level 1 | . 1 1 . Low Security (%) 76 | . 60 92 100 Level 1 23 | . 39 7 . Level 2 . | . . . . Level 3 . | . . . . Level 4 . | . . . . Level 5 . | . . . . High Security . | . . . . Max Security . | . . . . Squads Dispatched 4 | . . 2 2 Investigation 1 | . . 1 . Extermination . | . . . . Reinforcement 3 | . . 1 2 Assault . | . . . . Garrison . | . . . . Intercept . | . . . . Construction Impeded . | . . . . Haulers Reinforced . | . . . . Cargo Convoy Interrupts . | . . . . Stealth | -11 -10 -9 -8 --------- Run | Scr Mat Mat Mat Distress Signals 1 | . 1 . . Communications Jammed . | . . . . Distress Signals . | . . . . Times Spotted 29 | . 13 6 10 Peak Tracking Total 7 | . 6 3 7 Tactical Retreats 2 | . 1 1 . Traps | -11 -10 -9 -8 ------- Run | Scr Mat Mat Mat Traps Triggered 2 | . 1 1 . Indirectly . | . . . . Trap Hack Attempts . | . . . . Triggered . | . . . . Disarmed . | . . . . Reprogrammed . | . . . . Reused . | . . . . Traps Extracted . | . . . . Installed . | . . . . Triggered . | . . . . Machines | -11 -10 -9 -8 ---------- Run | Scr Mat Mat Mat Machines Disabled 5 | . 5 . . Max in Single Turn 4 | . 4 . . Machines Sabotaged . | . . . . Garrisons Compromised . | . . . . Overloaded Fab Kills . | . . . . Fab Network Shutdowns . | . . . . Hacking | -11 -10 -9 -8 --------- Run | Scr Mat Mat Mat Machines Accessed 5 | . 2 3 . Terminals 5 | . 2 3 . Fabricators . | . . . . Repair Stations . | . . . . Recycling Units . | . . . . Scanalyzers . | . . . . Garrison Access . | . . . . Total Hacks 16 | . 8 8 . Successful 7 | . 3 4 . Failed 9 | . 5 4 . Catastrophic 4 | . 3 1 . Database Lockouts . | . . . . Manual 10 | . 4 6 . Terminals 16 | . 8 8 . Fabricators . | . . . . Repair Stations . | . . . . Recycling Units . | . . . . Scanalyzers . | . . . . Garrison Access . | . . . . Terminal Hacks 7 | . 3 4 . Prototype ID Bank 2 | . 1 1 . Terminal Index 1 | . . 1 . Alert Level 1 | . 1 . . Recall Reinforcements 1 | . . 1 . Zone Layout 2 | . 1 1 . Fabricator Hacks . | . . . . Repair Station Hacks . | . . . . Recycling Unit Hacks . | . . . . Scanalyzer . | . . . . Garrison Access Hacks . | . . . . Unauthorized Hacks . | . . . . Terminals . | . . . . Fabricators . | . . . . Repair Stations . | . . . . Recycling Units . | . . . . Scanalyzers . | . . . . Garrison Access . | . . . . Data Cores Recovered . | . . . . Used . | . . . . Hacking Detections 4 | . 2 2 . Full Trace Events . | . . . . Feedback Events . | . . . . Feedback Blocked . | . . . . Robot Schematics Acquired . | . . . . Robots Built . | . . . . Matter . | . . . . Time . | . . . . Total Robot Build Rating . | . . . . Part Schematics Acquired . | . . . . Parts Built . | . . . . Matter . | . . . . Time . | . . . . Total Part Build Rating . | . . . . Parts Repaired . | . . . . Time . | . . . . Parts Recycled . | . . . . Recycled Matter . | . . . . Retrieved Matter . | . . . . Retrieved Components . | . . . . Parts Scanalyzed . | . . . . Part Schematics Acquired . | . . . . Parts Damaged . | . . . . Bothacking | -11 -10 -9 -8 ------------ Run | Scr Mat Mat Mat Used RIF Installer . | . . . . Robots Hacked . | . . . . Non-combat . | . . . . Combat . | . . . . Robot Hacks Applied . | . . . . Relay Couplers Released . | . . . . Robots Rewired . | . . . . Allies Hacked . | . . . . Hacks Repelled . | . . . . Allies | -11 -10 -9 -8 -------- Run | Scr Mat Mat Mat Total Allies . | . . . . Largest Group . | . . . . Highest-Rated Group . | . . . . Highest-Rated Ally . | . . . . Total Orders . | . . . . Ally Attacks . | . . . . Total Damage . | . . . . Kills . | . . . . Allies Corrupted . | . . . . Allies Melted . | . . . . Intel | -11 -10 -9 -8 ------- Run | Scr Mat Mat Mat Robot Analysis Total . | . . . . Derelict Logs Recovered . | . . . . Drone Launches . | . . . . Drone Recoveries . | . . . . Exploration | -11 -10 -9 -8 ------------- Run | Scr Mat Mat Mat Turns Passed 611 | . 325 203 83 Spaces Moved 339 | 1 199 107 32 Core . | . . . . Treads . | . . . . Legs 339 | 1 199 107 32 Wheels . | . . . . Hover . | . . . . Flight . | . . . . Fastest Speed 120 | 120 120 120 120 Average Speed 122 | 120 124 120 122 Slowest Speed 200 | 120 200 120 200 Overloaded Moves . | . . . . Propulsion Burnouts . | . . . . Robots Hopped . | . . . . Cave-ins Triggered . | . . . . Exploration Rate (%) 13 | 2 30 16 5 Regions Visited 3 Branch Regions . Pre-discovered Areas . | . . . . Known Exits Taken . | . . . . Unknown Exits Taken 3 | 1 1 1 . Scrap Searched . | . . . . Spaces Dug 2 | . . 2 . Terrain Destroyed 34 | . 32 2 . Melee 2 | . . 2 . Projectile . | . . . . AOE 32 | . 32 . . Terrain Rammed . | . . . . Walls Destroyed . | . . . . Machines Disabled . | . . . . Actions | -11 -10 -9 -8 --------- Run | Scr Mat Mat Mat Total 455 | . 241 155 59 Wait 42 | . 3 27 12 Move 336 | . 198 106 32 Hop . | . . . . Pick Up 9 | . 7 1 1 Fast Attach . | . . . . Attach 5 | . 3 1 1 Detach . | . . . . Swap 2 | . 2 . . Drop 5 | . 5 . . Fire 29 | . 15 7 7 Melee 26 | . 7 13 6 Ram . | . . . . Kick 1 | . 1 . . Crush . | . . . . Escape Stasis . | . . . . Rewire . | . . . . Trap . | . . . . Miscellaneous . | . . . . Route ------- -11/Scrapyard -10/Materials -9/Materials -8/Materials History --------- Turn | Location | Event 1 | -11/Scrapyard | Discovered new exit (range 0) 1 | -11/Scrapyard | Entered Materials 284 | -10/Materials | Discovered new exit (range 16) 326 | -10/Materials | Entered another Materials area 326 | -9/Materials | Evolved 2 slots: Propulsion x1, Utility x1 347 | -9/Materials | Build established: Mutant 517 | -9/Materials | Discovered new exit (range 3) 529 | -9/Materials | Entered another Materials area 529 | -8/Materials | Evolved 2 slots: Utility x1, Weapon x1 612 | -8/Materials | Self-destructed Last Messages --------------- Acquired 6 matter. EXIT=FOUND T-07 Excavator is excavating. K-01 Serf collects debris. PARAMETERS=UTILITY+1,WEAPON+1 LOCATION=UNKNOWN GOAL=ESCAPE O-16 Technician: "IFF HANDSHAKE FAILED. SECURING TERMINAL." ALERT: Hostiles spotted, dispatching reinforcements to Terminal M008. O-16 Technician uses terminal to summon reinforcements. ALERT: Hostiles spotted, dispatching reinforcements to Terminal M004. O-16 Technician locks terminal. Critical hit (Burn: +37). G-47 Trooper destroyed. Acquired Aluminum Leg. R-06 Scavenger collects Lgt. Nuclear Core. Ion Engine destroyed. R-06 Scavenger collects Imp. Heat Sink. Assault Rifle destroyed. Aluminum Leg destroyed. Map ----- +----------------------------------------------------+ | | | | | | | | | | | | | | | | | | | ?????????????????????????????????????????????????? | | ?????????????????????????????????????????????????? | | ?????????????????????????????????????????????????? | | ?????????????????????????????????????????????????? | | ?????????????????????????????????????????????????? | | ?????????????????????????????????????????????????? | | #####????????????????????????????????????????????? | | ######???????????????????????????????????????????? | | !!!###???????????????????????????????????????????? | | !##????????????????????????? #?????????????? | | !######### ##########+########????????? | | #############+#############o ###### ????????? | | YT ????????? | | ####^g g^r ##?????????????? | | #### g g^ ##?????????????? | | ####################### gg"""^ ##?????????????? | | ####################### @""" ##?????????????? | | ?????????????????????## """ ##?????????????? | | ?????????????????????## ##?????????????? | | ?????????????????????## ##?????????????? | | ?????????????????????## ##?????????????? | | ?????????????????????##### ##?????????????? | | ?????????????????????# ???????????? | | ?????????????????????????#######+#####???????????? | | ?????????????????????????##### ##???????????? | | ?????????????????????????????????????????????????? | | ?????????????????????????????????????????????????? | | ?????????????????????????????????????????????????? | | ?????????????????????????????????????????????????? | | ?????????????????????????????????????????????????? | | ?????????????????????????????????????????????????? | | ?????????????????????????????????????????????????? | | ?????????????????????????????????????????????????? | | ?????????????????????????????????????????????????? | | ?????????????????????????????????????????????????? | | ?????????????????????????????????????????????????? | | ?????????????????????????????????????????????????? | | ?????????????????????????????????????????????????? | | ?????????????????????????????????????????????????? | | ?????????????????????????????????????????????????? | | ?????????????????????????????????????????????????? | +----------------------------------------------------+ Best States ------------- Heat Dissipation 31 Energy Generation 10 Energy Capacity 250 Matter Stores 300 Matter Capacity 300 Sight Range 16 Terrain Scan Density 10 Evasion (%) 55 Item Schematics ----------------- None Robot Schematics ------------------ None Fabricated ------------ Nothing Alien Tech Used ----------------- None Achievements -------------- None Challenges ------------ None Game ------ Seed ThiefEtherialProtection Manual? 0 Play Time 00:06:50 Cumulative 177.2 hours Start 2021.05.31 @ 23:45:35 End 2021.05.31 @ 23:51:02 Sessions 1 Manual Loads 0 Difficulty Rogue Special Mode None Game No. 215 Rogue 215 Adventurer 0 Explorer 0 Win Type - Total 2 Types 2/0/0/0/0/0/0/0/0 Lore% 57 Gallery% 74 Achievement% 56 Wizard Run 0 Options --------- ASCII 0 Keyboard 0 Movement Mouse Keybinds 1 Fullscreen 2 Font 24/Smallcaps Map View 76x50 Tactical HUD 1 Map Filters NONE Filters NONE Steam 1 RUN: 197659cf-4730-418f-94d9-c93a0cd1e1e3